Cogmind - Beta 11 @@@ ROGUE MODE // 2022.03.29 @ 15:22:34 Player: Catfish Result: Destroyed by S-27 Virus with Autogun Performance ------------- Evolutions (3) 1500 Regions Visited (5) 1000 Robots Destroyed (29) 145 Value Destroyed (758) 758 Prototype IDs (2) 40 Alien Tech Used (0) 0 Bonus (16) 16 TOTAL SCORE: 3459 Bonus ------- High Alert Combat Kills 16 Cogmind --------- Core Integrity 0/700 Matter 229/300 Energy 100/100 System Corruption 0% Temperature Cool (0) Movement Core (50) Location -7/Factory Parts ------- > --- POWER (2) -------- (None) > --- PROPULSION (4) --- (None) > --- UTILITY (5) ------ Advanced Visual Processing Unit Improved Signal Interpreter > --- WEAPON (2) ------- (None) > --- INVENTORY (5) ---- Flight Unit Improved Sensor Array Improved Signal Interpreter Advanced ECM Suite Rocket Launcher Peak State ------------ > --- POWER ------------ Backup Power I > --- PROPULSION ------- Armored Huge Wheel Flight Unit > --- UTILITY ---------- Advanced Weight Redist. System Advanced Visual Processing Unit Improved Signal Interpreter ECM Suite Recalibrator > --- WEAPON ----------- Heavy Assault Rifle Gauss Cannon > --- INVENTORY -------- Flight Unit Improved Signal Interpreter Advanced ECM Suite Rocket Launcher [Rating: 31] Favorites ----------- Power Light Nuclear Core Engine Backup Power I Power Core Light Nuclear Core Propulsion Aluminum Leg Leg Aluminum Leg Wheel Compact Wheel Flight Unit Flight Unit Utility Signal Interpreter Device Advanced Weight Redist. System Storage Small Storage Unit Processor Signal Interpreter Protection Medium Armor Plating Weapon Small Laser Energy Gun Small Laser Energy Cannon Heavy Particle Cannon Ballistic Gun Heavy Assault Rifle Ballistic Cannon Gauss Cannon Build | -11 -10 -10 -9 -8 -7 ------- Run | Scr Mat Min Mat Mat Fac Slots Evolved 6 | . . . 2 2 2 Power 1 | . . . . . 1 Propulsion 2 | . . . 1 1 . Utility 3 | . . . 1 1 1 Weapon . | . . . . . . Parts Attached 44 | 4 8 2 6 12 12 Power 4 | 1 1 1 . 1 . Engine 2 | 1 . . . 1 . Core 2 | . 1 1 . . . Reactor . | . . . . . . Propulsion 14 | 2 1 1 3 4 3 Treads . | . . . . . . Leg 6 | 2 1 1 2 . . Wheel 3 | . . . . . 3 Hover . | . . . . . . Flight 5 | . . . 1 4 . Utility 15 | 1 1 . 2 5 6 Device 9 | . . . 2 3 4 Storage 1 | 1 . . . . . Processor 3 | . 1 . . . 2 Hackware . | . . . . . . Protection 2 | . . . . 2 . Artifact . | . . . . . . Weapon 11 | . 5 . 1 2 3 Energy Gun 6 | . 3 . 1 1 1 Energy Cannon 1 | . . . . 1 . Ballistic Gun 3 | . 2 . . . 1 Ballistic Cannon 1 | . . . . . 1 Launcher . | . . . . . . Special Weapon . | . . . . . . Impact Weapon . | . . . . . . Slashing Weapon . | . . . . . . Piercing Weapon . | . . . . . . Special Melee Weapon . | . . . . . . Unidentified Prototypes . | . . . . . . Parts Lost 18 | . . . . 4 14 Power 3 | . . . . 1 2 Propulsion 4 | . . . . 1 3 Utility 6 | . . . . 1 5 Weapon 5 | . . . . 1 4 Highest Loss Streak 5 | . . . . 3 5 To Critical Strikes . | . . . . . . Average Slot Usage (%) 84 | . 85 100 95 91 71 Engine 5 | . 11 . . 6 7 Core 4 | . 2 14 11 3 . Leg 14 | . 28 28 27 . . Wheel 2 | . . . . . 7 Flight 6 | . . . 1 31 7 Device 11 | . . . 11 14 21 Storage 6 | . 14 14 11 . . Processor 8 | . . 14 11 9 11 Protection 1 | . . . . 8 1 Energy Gun 13 | . 15 28 22 17 2 Ballistic Gun 4 | . 11 . . . 5 Ballistic Cannon 1 | . . . . . 4 Naked Turns . | . . . . . . Heaviest Build 20 | 10 14 14 15 15 20 Greatest Support 32 | 20 20 20 30 17 32 Greatest Overweight (x) 3 | 3 . . . 1 1 Average Overweight (x) . | . . . . . . Largest Inventory Capacity 8 | 8 8 8 8 8 5 Average Capacity 6 | 7 8 8 8 5 5 Most Carried 8 | 5 8 8 8 8 5 Average Carried 5 | 3 6 8 7 4 3 Final Capacity 8 | 8 8 8 8 5 5 Final Carried 8 | 5 8 8 8 5 5 Class Distribution -------------------- 49% | Mutant 44% | Scavenger-Mutant 6% | Scavenger-Sprinter Dominant Class ---------------- Mutant | -10/Materials Scavenger-Mutant | -10/Mines Scavenger-Mutant | -9/Materials Scavenger-Sprinter | -8/Materials Mutant | -7/Factory Resources | -11 -10 -10 -9 -8 -7 ----------- Run | Scr Mat Min Mat Mat Fac Matter Collected 698 | 240 100 30 50 . 278 Remotely . | . . . . . . Salvage Created 784 | . 251 42 333 . 158 Parts 57 | . 23 6 18 . 10 Haulers Intercepted . | . . . . . . Recyclers Shooed . | . . . . . . Parts Field Recycled . | . . . . . . Retrieved Matter . | . . . . . . Parts Self-Destructed . | . . . . . . Prevented . | . . . . . . Kills | -11 -10 -10 -9 -8 -7 ------- Run | Scr Mat Min Mat Mat Fac Combat Hostiles Destroyed 24 | . 7 3 10 . 4 Guns 22 | . 7 3 10 . 2 Cannons 2 | . . . . . 2 Classes Destroyed 6 | . 4 . 1 . 1 Worker 2 | . 1 . . . 1 Watcher 3 | . 1 . 1 . 1 Swarmer 10 | . 3 3 4 . . Grunt 10 | . 4 . 4 . 2 Sentry 2 | . . . 2 . . Programmer 2 | . . . . . 2 Best Kill Streak 6 | . 3 2 6 . 2 Combat Bots Only 6 | . 3 2 6 . 1 Max Kills in Single Turn 2 | . 1 1 2 . 1 Gunslinging 1 | . . . 1 . . Exploded . | . . . . . . Melee . | . . . . . . Uniques/NPCs Destroyed . | . . . . . . Combat | -11 -10 -10 -9 -8 -7 -------- Run | Scr Mat Min Mat Mat Fac Damage Taken 2732 | . 398 59 229 398 1648 Core 887 | . 60 44 42 41 700 Absorbed by Shields . | . . . . . . Regen/Repaired (Parts) 14 | . . . . . 14 Core Remaining (%) 84 | 100 . 58 89 92 . Volleys Fired 104 | . 30 4 27 5 38 Largest 2 | . 2 2 2 2 2 Hottest 105 | . 105 105 105 105 98 Shots Fired 194 | . 60 8 54 10 62 Gun 178 | . 60 8 54 10 46 Cannon 16 | . . . . . 16 Launcher . | . . . . . . Special . | . . . . . . Kinetic 78 | . 30 . . . 48 Thermal 112 | . 30 8 54 10 10 Explosive . | . . . . . . Electromagnetic 4 | . . . . . 4 Robot Hit Streak 10 | . 8 5 10 7 9 Robot Miss Streak 5 | . 4 2 5 2 4 Penetration Max . | . . . . . . Secondary Targets 3 | . 2 . 1 . . Max Gunslinging Chain 1 | . 1 . 1 . . Shots Hit Robots 130 | . 38 4 37 7 44 Core Hits 51 | . 16 3 19 2 11 Critical Kills . | . . . . . . Critical Parts Destroyed . | . . . . . . Critical Strikes 3 | . . . 1 . 2 Burn 2 | . . . 1 . 1 Blast 1 | . . . . . 1 Melee Attacks . | . . . . . . Impact . | . . . . . . Slashing . | . . . . . . Piercing . | . . . . . . Sneak Attacks . | . . . . . . Combat Hostiles . | . . . . . . Follow-up Attacks . | . . . . . . Damage Inflicted 1923 | . 376 51 483 88 925 Guns 1579 | . 376 51 483 88 581 Cannons 342 | . . . . . 342 Explosions . | . . . . . . Melee . | . . . . . . Ramming 2 | . . . . . 2 Kinetic 913 | . 166 . . . 747 Thermal 933 | . 210 51 483 88 101 Explosive . | . . . . . . Electromagnetic 75 | . . . . . 75 Impact . | . . . . . . Slashing . | . . . . . . Piercing . | . . . . . . Highest Corruption . | . . . . . . Average Corruption . | . . . . . . Corruption Purged . | . . . . . . Corruption Blocked . | . . . . . . Overload Shots . | . . . . . . Overflow Damage 29 | . . . . . 29 Projectiles 29 | . . . . . 29 Explosions . | . . . . . . Melee . | . . . . . . Knockbacks 4 | . . . . . 4 Impact . | . . . . . . Kinetic 4 | . . . . . 4 Secondary . | . . . . . . Self-Inflicted Damage 1 | . . . . . 1 Shots . | . . . . . . Rammed 1 | . . . . . 1 Targets Rammed 1 | . . . . . 1 Kicked . | . . . . . . Crushed . | . . . . . . Highest Temperature 244 | . 234 102 232 244 189 Average Temperature 89 | . 81 52 96 104 86 Received Heat Transfer 825 | . 126 . 81 144 474 Siege Activations . | . . . . . . Robots Corrupted . | . . . . . . Combat Hostiles . | . . . . . . Parts Fried . | . . . . . . Impact Corruptions . | . . . . . . Robots Melted . | . . . . . . Combat Hostiles . | . . . . . . Parts Melted 3 | . 2 . 1 . . Heat Transferred 2333 | . 474 112 1203 211 333 Parts Sabotaged . | . . . . . . Parts Stolen . | . . . . . . Parts Stripped . | . . . . . . Power Chain Reactions . | . . . . . . Missiles Intercepted . | . . . . . . Alert | -11 -10 -10 -9 -8 -7 ------- Run | Scr Mat Min Mat Mat Fac Peak Influence 442 | . 229 121 442 296 174 Initial 186 | . . 21 46 186 120 Average 135 | . 92 112 229 222 102 Maximum Alert Level 2 | . 1 . 2 1 . Low Security (%) 84 | 100 97 100 48 50 100 Level 1 11 | . 2 . 28 50 . Level 2 4 | . . . 22 . . Level 3 . | . . . . . . Level 4 . | . . . . . . Level 5 . | . . . . . . High Security . | . . . . . . Max Security . | . . . . . . Squads Dispatched 11 | . 2 . 2 2 5 Investigation 5 | . . . 1 2 2 Extermination 2 | . . . . . 2 Reinforcement 4 | . 2 . 1 . 1 Assault . | . . . . . . Garrison . | . . . . . . Intercept . | . . . . . . Searches Triggered . | . . . . . . Construction Impeded 1 | . . . . . 1 Haulers Reinforced . | . . . . . . Active Scanning Responses . | . . . . . . Cargo Convoy Interrupts . | . . . . . . Stealth | -11 -10 -10 -9 -8 -7 --------- Run | Scr Mat Min Mat Mat Fac Distress Signals 5 | . . . 3 1 1 Communications Jammed . | . . . . . . Distress Signals . | . . . . . . Times Spotted 67 | . 14 4 22 11 16 Peak Tracking Total 9 | . 4 3 7 9 6 Tactical Retreats 11 | . 1 1 3 3 3 Traps | -11 -10 -10 -9 -8 -7 ------- Run | Scr Mat Min Mat Mat Fac Traps Triggered 4 | . 1 . 1 1 1 Indirectly . | . . . . . . Trap Hack Attempts . | . . . . . . Triggered . | . . . . . . Disarmed . | . . . . . . Reprogrammed . | . . . . . . Reused . | . . . . . . Traps Extracted . | . . . . . . Installed . | . . . . . . Triggered 1 | . . . . . 1 Machines | -11 -10 -10 -9 -8 -7 ---------- Run | Scr Mat Min Mat Mat Fac Machines Disabled 1 | . . . . . 1 Max in Single Turn 1 | . . . . . 1 Machines Sabotaged . | . . . . . . Garrisons Compromised . | . . . . . . Overloaded Fab Kills . | . . . . . . Hacking | -11 -10 -10 -9 -8 -7 --------- Run | Scr Mat Min Mat Mat Fac Machines Accessed 14 | . 2 . 3 4 5 Terminals 11 | . 2 . 3 3 3 Fabricators 1 | . . . . . 1 Repair Stations 1 | . . . . . 1 Recycling Units 1 | . . . . 1 . Scanalyzers . | . . . . . . Garrison Access . | . . . . . . Total Hacks 41 | . 3 . 10 12 16 Successful 28 | . 1 . 7 8 12 Failed 13 | . 2 . 3 4 4 Catastrophic 3 | . . . 1 2 . Database Lockouts . | . . . . . . Manual 9 | . 1 . 2 2 4 Terminals 30 | . 3 . 10 9 8 Fabricators 3 | . . . . . 3 Repair Stations 5 | . . . . . 5 Recycling Units 3 | . . . . 3 . Scanalyzers . | . . . . . . Garrison Access . | . . . . . . Terminal Hacks 14 | . . . 5 6 3 Record 5 | . . . 1 4 . Prototype ID Bank 1 | . . . 1 . . Branch Access Points 2 | . . . 1 1 . Unreport Threat 1 | . . . . . 1 Locate Traps 2 | . . . 1 1 . Zone Layout 3 | . . . 1 . 2 Fabricator Hacks 2 | . . . . . 2 Network Status 1 | . . . . . 1 Build 1 | . . . . . 1 Repair Station Hacks 4 | . . . . . 4 Scan Component 2 | . . . . . 2 Repair 1 | . . . . . 1 Refit 1 | . . . . . 1 Recycling Unit Hacks . | . . . . . . Scanalyzer . | . . . . . . Garrison Access Hacks . | . . . . . . Unauthorized Hacks 8 | . 1 . 2 2 3 Terminals 8 | . 1 . 2 2 3 Botnet 8 | . 1 . 2 2 3 Fabricators . | . . . . . . Repair Stations . | . . . . . . Recycling Units . | . . . . . . Scanalyzers . | . . . . . . Garrison Access . | . . . . . . Data Cores Recovered . | . . . . . . Used . | . . . . . . Hacking Detections 12 | . 1 . 3 3 5 Full Trace Events 3 | . . . . 1 2 Feedback Events . | . . . . . . Feedback Blocked . | . . . . . . Robot Schematics Acquired . | . . . . . . Robots Built . | . . . . . . Authchips . | . . . . . . Time 116 | . . . . . 116 Total Robot Build Rating . | . . . . . . Part Schematics Acquired . | . . . . . . Parts Built . | . . . . . . Authchips . | . . . . . . Time . | . . . . . . Total Part Build Rating . | . . . . . . Parts Repaired 1 | . . . . . 1 Time 26 | . . . . . 26 Parts Recycled . | . . . . . . Recycled Matter . | . . . . . . Retrieved Matter . | . . . . . . Retrieved Components . | . . . . . . Parts Scanalyzed . | . . . . . . Part Schematics Acquired . | . . . . . . Parts Damaged . | . . . . . . Bothacking | -11 -10 -10 -9 -8 -7 ------------ Run | Scr Mat Min Mat Mat Fac Used RIF Installer . | . . . . . . Robots Hacked . | . . . . . . Non-combat . | . . . . . . Combat . | . . . . . . Robot Hacks Applied . | . . . . . . Relay Couplers Released . | . . . . . . Fabnet Peak Effective % . | . . . . . . Robots Rewired . | . . . . . . Allies Hacked . | . . . . . . Hacks Repelled . | . . . . . . Allies | -11 -10 -10 -9 -8 -7 -------- Run | Scr Mat Min Mat Mat Fac Total Allies . | . . . . . . Largest Group . | . . . . . . Highest-Rated Group . | . . . . . . Highest-Rated Ally . | . . . . . . Total Orders . | . . . . . . Ally Attacks . | . . . . . . Total Damage . | . . . . . . Kills . | . . . . . . Allies Corrupted . | . . . . . . Allies Melted . | . . . . . . Intel | -11 -10 -10 -9 -8 -7 ------- Run | Scr Mat Min Mat Mat Fac Robot Analysis Total . | . . . . . . Derelict Logs Recovered 2 | . . 2 . . . Drone Launches . | . . . . . . Drone Recoveries . | . . . . . . Exploration | -11 -10 -10 -9 -8 -7 ------------- Run | Scr Mat Min Mat Mat Fac Turns Passed 2113 | 63 482 230 388 238 712 Spaces Moved 1617 | 39 289 176 218 466 429 Core 18 | 18 . . . . . Treads . | . . . . . . Legs 704 | 21 289 176 218 . . Wheels 361 | . . . . . 361 Hover . | . . . . . . Flight 534 | . . . . 466 68 Fastest Speed 29 | 50 120 120 120 29 32 Average Speed 92 | 126 120 120 120 42 99 Slowest Speed 200 | 200 120 120 120 117 114 Overloaded Moves . | . . . . . . Propulsion Burnouts . | . . . . . . Robots Hopped 7 | . . . . 7 . Cave-ins Triggered . | . . . . . . Exploration Rate (%) 27 | 3 50 34 23 43 14 Regions Visited 5 Branch Regions 1 Pre-discovered Areas 1 | . . 1 . . . Known Exits Taken 2 | . . . 1 1 . Unknown Exits Taken 3 | 1 1 1 . . . Scrap Searched . | . . . . . . Spaces Dug . | . . . . . . Terrain Destroyed 3 | . . . . . 3 Melee . | . . . . . . Projectile 3 | . . . . . 3 AOE . | . . . . . . Terrain Rammed . | . . . . . . Walls Destroyed . | . . . . . . Machines Disabled . | . . . . . . Actions | -11 -10 -10 -9 -8 -7 --------- Run | Scr Mat Min Mat Mat Fac Total 2048 | 53 373 191 292 488 651 Wait 232 | 2 27 4 37 3 159 Move 1598 | 38 288 175 217 451 429 Hop 7 | . . . . 7 . Pick Up 35 | 9 12 2 1 3 8 Fast Attach 6 | . . . 1 2 3 Attach 23 | 4 4 . 2 5 8 Detach 1 | . . . 1 . . Swap 15 | . 4 2 3 5 1 Drop 26 | . 8 4 3 7 4 Fire 104 | . 30 4 27 5 38 Melee . | . . . . . . Ram 1 | . . . . . 1 Kick . | . . . . . . Crush . | . . . . . . Escape Stasis . | . . . . . . Rewire . | . . . . . . Trap . | . . . . . . Miscellaneous . | . . . . . . Route ------- -11/Scrapyard -10/Materials (discovered 2 exits: *Mat / [*Min]) -10/Mines (discovered 2 exits: *Mat x2) -9/Materials (discovered 3 exits: *Mat / *Min x2) -8/Materials -7/Factory History --------- Turn | Location | Event 20 | -11/Scrapyard | Discovered new exit (range 14) 64 | -11/Scrapyard | Entered Materials 309 | -10/Materials | Discovered new exit (range 15) 311 | -10/Materials | Build established: Mutant 500 | -10/Materials | Discovered new exit (range 8) 546 | -10/Materials | Entered Mines 546 | -10/Mines | Discovered new exit (range 11) 556 | -10/Mines | Learned location of Storage (-7) 587 | -10/Mines | Met a Derelict bent on vengeance 635 | -10/Mines | Received a Rocket Launcher from a helpful Derelict 660 | -10/Mines | Learned Materials terminal intel 663 | -10/Mines | Discovered new exit (range 4) 729 | -10/Mines | Assembled infested the area 776 | -10/Mines | Entered Materials 776 | -9/Materials | Evolved 2 slots: Propulsion x1, Utility x1 777 | -9/Materials | Loaded intel: 12 terminal locations 817 | -9/Materials | Build established: Scavenger-Mutant 1043 | -9/Materials | Discovered new exit (range 15) 1045 | -9/Materials | Identified exit to Mines 1154 | -9/Materials | Discovered new exit (range 5) 1162 | -9/Materials | Identified exit to Materials 1164 | -9/Materials | Entered another Materials area 1164 | -8/Materials | Evolved 2 slots: Propulsion x1, Utility x1 1401 | -8/Materials | Discovered new exit (range 4) 1401 | -8/Materials | Identified exit to Factory 1402 | -8/Materials | Entered Factory 1402 | -7/Factory | Evolved 2 slots: Power x1, Utility x1 1423 | -7/Factory | Lost 3 parts (1n1u1w) 1498 | -7/Factory | Repaired Flight Unit? 1594 | -7/Factory | Lost 4 parts (1p1n1u1w) 1945 | -7/Factory | Build established: Mutant 2105 | -7/Factory | Core integrity fell below 50% 2111 | -7/Factory | Core integrity fell below 20% 2114 | -7/Factory | Destroyed by S-27 Virus with Autogun Last Messages --------------- displayed by Steam are all significantly underreported, in some cases by a huge margin, due to how they are calculated by Valve. >>Trojan(Botnet) Trojan loaded successfully. Testing... Terminal linked with 2 systems. Awaiting botnet instructions. Backup Power I destroyed. Acquired 2 matter. Shock Rifle destroyed. ALERT: Cargo convoy en route, clear transfer corridor. Slammed into K-01 Serf. K-01 Serf sends out distress signal. ECM Suite destroyed. Arm. Huge Wheel destroyed. Recalibrator destroyed. Gauss Cannon destroyed. Critical hit (Burn: +37). Adv. Weight Redist. System destroyed. S-27 Virus destroyed. Map ----- +----------------------------------------------------+ | ?????????????????????????????????????????????????? | | ?????????????????????????????????????????????????? | | ?????????????????????????????????????????????????? | | ?????????????????????????????????????????????????? | | ?????????????????????????????????????????????????? | | ?????????????????????????????????????????????????? | | ?????????????????????????????????????????????????? | | ?????????????????????????????????????????????????? | | ?????????????????????????????????????????????????? | | ?????????????????????????????????????????????????? | | ?????????????????????????????????????????????????? | | ?????????????????????????????????????????????????? | | ?????????????????????????????????????????????????? | | ?????????????????????????????????????????????????? | | ????????###########+#########????????#######?????? | | ???????? ########## #?????? | | ??????? ! #?????? | | ??????? #?????? | | ??????? ^ #?????? | | ??????? gg ##+####### ! #?????? | | ???????????########+### Y# #?## ##?????? | | ??????????????????????# # """ #??# #??????? | | ??????????????????????#s # """ #??# #??????? | | ??????????????????????# # """ !#??# #??????? | | ??????????????????????#s # #### ###????? | | ??????????????????????#a%@ # """ ## #????? | | ??????????????????????# # """ ## ###### | | ??????????????????????# # """ ## / | | ??????????????????????# # ? ## | | ??????????????????????# u # ???? ## | | ??????????????????????# # ??????# ###### | | ??????????????????????# # ??????# #????? | | ??????????????????????# # ??????#########????? | | ??????????????????????# ##???????????????????? | | ??????????????????????# #????????????????????? | | ??????????????????????# #????????????????????? | | ??????????????????????# #????????????????????? | | ??????????????????????# #????????????????????? | | ??????????????????????# ^u #????????????????????? | | ??????????????????????+ ^^+????????????????????? | | ??????????????????????# #????????????????????? | | ??????????????????????# #????????????????????? | | ??????????????????????# #????????????????????? | | ??????????????????????#k r #????????????????????? | | ??????????????????????# #????????????????????? | | ??????????????????????# ?????????????????????? | | ??????????????????????# ?????????????????????? | | ??????????????????????# ?????????????????????? | | ???????????????????????? ?????????????????????? | | ?????????????????????????????????????????????????? | +----------------------------------------------------+ Best States ------------- Heat Dissipation 34 Energy Generation 14 Energy Capacity 250 Matter Stores 300 Matter Capacity 300 Sight Range 20 Robot Scan Range 14 Terrain Scan Density 10 ECM Strength 1 Additional Mass Support 9 Armor Coverage 225 Evasion (%) 64 Item Schematics ----------------- None Robot Schematics ------------------ None Fabricated ------------ Nothing Alien Tech Used ----------------- None Achievements -------------- Quantum Hacking Challenges ------------ None Game ------ Seed TransmissionMassLoader Manual? 0 Play Time 00:35:49 Cumulative 1.1 hours Start 2022.03.29 @ 14:42:55 End 2022.03.29 @ 15:22:34 Sessions 1 Manual Loads 0 Difficulty Rogue Special Mode None Game No. 6 Rogue 6 Adventurer 0 Explorer 0 Win Type - Total 0 Types 0/0/0/0/0/0/0/0/0 Lore% 0 Gallery% 4 Achievement% 8 Wizard Run 0 Options --------- ASCII 0 Keyboard 0 Movement Numpad Keybinds 0 Fullscreen 2 Font 18/X11Bold Map View 76x50 Tactical HUD 0 Map Filters NONE Filters NONE Steam 1 RUN: 0bfad51e-ed6e-469c-a230-07fa5e42ebf8